[Event "Fast Chess"]
[Site "ChessKid.com"]
[Date "2020.03.22"]
[Round "3"]
[White "Georgiev, Daniel"]
[Black "Horvath, Alexander"]
[Result "1-0"]
[ECO "C42"]
[WhiteElo "1410"]
[BlackElo "1384"]
[PlyCount "79"]
[EventDate "2020.??.??"]
[TimeControl "300+10"]
[WhiteClock "0:01:16"]
[BlackClock "0:00:18"]

1. e4 {[%emt 0:00:10]} e5 {[%emt 0:00:11]} 2. Nf3 {[%emt 0:00:12]} Nf6 {
[%emt 0:00:11]} 3. Nxe5 {[%emt 0:00:17]} Qe7 {[%emt 0:00:10]} 4. Nf3 {[%emt 0:
01:00]} Nxe4 {[%emt 0:00:11]} 5. Be2 {[%emt 0:00:11]} Qf6 {[%emt 0:00:19]} 6.
O-O {[%emt 0:00:27]} Qg6 {[%emt 0:00:13]} 7. d3 {[%emt 0:00:28]} d5 {[%emt 0:
00:29]} 8. dxe4 {[%emt 0:00:15]} Bh3 {[%emt 0:00:11]} 9. Nh4 {[%emt 0:00:13]}
Qxe4 {[%emt 0:00:16]} 10. gxh3 {[%emt 0:00:49]} Qxh4 {[%emt 0:00:13]} 11. Bf3 {
[%emt 0:00:11]} Qxh3 {[%emt 0:00:32]} 12. Re1+ {[%emt 0:00:13]} Kd8 {[%emt 0:
00:16]} 13. Qxd5+ {[%emt 0:00:13]} Bd6 {[%emt 0:00:13]} 14. Qg5+ {[%emt 0:00:
28]} f6 {[%emt 0:00:20]} 15. Qg2 {[%emt 0:00:18]} Qh4 {[%emt 0:00:42]} 16. Bxb7
{[%emt 0:00:16]} Re8 {[%emt 0:00:27]} 17. Rxe8+ {[%emt 0:00:15]} Kxe8 {[%emt 0:
00:12]} 18. Bxa8 {[%emt 0:00:11]} c6 {[%emt 0:00:28]} 19. Bxc6+ {[%emt 0:00:14]
} Nxc6 {[%emt 0:00:11]} 20. Qxc6+ {[%emt 0:00:12]} Kf7 {[%emt 0:00:11]} 21.
Qd7+ {[%emt 0:00:14]} Be7 {[%emt 0:00:11]} 22. Be3 {[%emt 0:00:18]} Qb4 {
[%emt 0:00:37]} 23. b3 {[%emt 0:00:55]} h5 {[%emt 0:00:25]} 24. c3 {[%emt 0:00:
26]} Qg4+ {[%emt 0:00:14]} 25. Kh1 {[%emt 0:00:14]} Qf3+ {[%emt 0:00:13]} 26.
Kg1 {[%emt 0:00:12]} Qg4+ {[%emt 0:00:15]} 27. Qxg4 {[%emt 0:00:19]} hxg4 {
[%emt 0:00:11]} 28. Kg2 {[%emt 0:00:10]} f5 {[%emt 0:00:13]} 29. Nd2 {[%emt 0:
00:09]} Bf6 {[%emt 0:00:11]} 30. Bd4 {[%emt 0:00:11]} Bxd4 {[%emt 0:00:11]} 31.
cxd4 {[%emt 0:00:10]} Kf6 {[%emt 0:00:11]} 32. Nc4 {[%emt 0:00:10]} Ke6 {
[%emt 0:00:11]} 33. Rd1 {[%emt 0:00:11]} Kd5 {[%emt 0:00:11]} 34. Ne3+ {
[%emt 0:00:10]} Ke4 {[%emt 0:00:12]} 35. d5 {[%emt 0:00:09]} f4 {[%emt 0:00:10]
} 36. d6 {[%emt 0:00:11]} fxe3 {[%emt 0:00:11]} 37. fxe3 {[%emt 0:00:10]} Kxe3
{[%emt 0:00:11]} 38. d7 {[%emt 0:00:10]} Ke2 {[%emt 0:00:12]} 39. d8=Q {
[%emt 0:00:11]} g3 {[%emt 0:00:12]} 40. Qd3# {[%emt 0:00:11] PastSkilledLyric
won by checkmate} 1-0

[Event "Fast Chess"]
[Site "ChessKid.com"]
[Date "2020.03.22"]
[Round "3"]
[White "Sasse, Gabriel"]
[Black "Kober, Stefan"]
[Result "0-1"]
[ECO "C20"]
[WhiteElo "1124"]
[BlackElo "1300"]
[PlyCount "88"]
[EventDate "2020.??.??"]
[TimeControl "300+10"]
[WhiteClock "0:02:30"]
[BlackClock "0:02:06"]

1. e4 {[%emt 0:00:09]} e5 {[%emt 0:00:13]} 2. Qh5 {[%emt 0:00:13]} Nc6 {
[%emt 0:00:11]} 3. Bc4 {[%emt 0:00:13]} Qf6 {[%emt 0:00:11]} 4. d3 {[%emt 0:00:
14]} Bc5 {[%emt 0:00:15]} 5. Be3 {[%emt 0:00:19]} Bxe3 {[%emt 0:00:15]} 6. fxe3
{[%emt 0:00:13]} g6 {[%emt 0:00:13]} 7. Qf3 {[%emt 0:00:14]} Qxf3 {[%emt 0:00:
15]} 8. Nxf3 {[%emt 0:00:12]} d6 {[%emt 0:00:12]} 9. Nc3 {[%emt 0:00:11]} Nf6 {
[%emt 0:00:12]} 10. O-O-O {[%emt 0:00:13]} a6 {[%emt 0:00:17]} 11. Ng5 {
[%emt 0:00:13]} O-O {[%emt 0:00:17]} 12. Bxf7+ {[%emt 0:00:18]} Rxf7 {[%emt 0:
00:12]} 13. Nxf7 {[%emt 0:00:12]} Kxf7 {[%emt 0:00:10]} 14. Rhf1 {[%emt 0:00:
18]} Kg7 {[%emt 0:00:18]} 15. Nd5 {[%emt 0:00:12]} Nxd5 {[%emt 0:00:18]} 16.
exd5 {[%emt 0:00:10]} Ne7 {[%emt 0:00:12]} 17. e4 {[%emt 0:00:12]} Bg4 {
[%emt 0:00:14]} 18. Rde1 {[%emt 0:00:14]} Ng8 {[%emt 0:00:19]} 19. h3 {[%emt 0:
00:20]} Bd7 {[%emt 0:00:12]} 20. Rf2 {[%emt 0:00:15]} Nh6 {[%emt 0:00:15]} 21.
g4 {[%emt 0:00:15]} Rf8 {[%emt 0:00:17]} 22. Rxf8 {[%emt 0:00:13]} Kxf8 {
[%emt 0:00:10]} 23. g5 {[%emt 0:00:10]} Nf7 {[%emt 0:00:12]} 24. Rf1 {[%emt 0:
00:38]} Bxh3 {[%emt 0:00:12]} 25. Rf3 {[%emt 0:00:12]} Bg4 {[%emt 0:00:15]} 26.
Rg3 {[%emt 0:00:12]} Bd7 {[%emt 0:00:11]} 27. Rg1 {[%emt 0:00:15]} Ke7 {
[%emt 0:00:11]} 28. Rh1 {[%emt 0:00:13]} Nxg5 {[%emt 0:00:15]} 29. Rg1 {
[%emt 0:00:13]} Kf6 {[%emt 0:00:11]} 30. c3 {[%emt 0:00:15]} Nf3 {[%emt 0:00:
14]} 31. Rf1 {[%emt 0:00:12]} Bg4 {[%emt 0:00:11]} 32. d4 {[%emt 0:00:13]} exd4
{[%emt 0:00:12]} 33. cxd4 {[%emt 0:00:11]} Kg5 {[%emt 0:00:14]} 34. e5 {
[%emt 0:00:15]} dxe5 {[%emt 0:00:13]} 35. dxe5 {[%emt 0:00:11]} Nxe5 {[%emt 0:
00:10]} 36. Rd1 {[%emt 0:00:14]} Bxd1 {[%emt 0:00:14]} 37. Kxd1 {[%emt 0:00:12]
} h5 {[%emt 0:00:11]} 38. Ke2 {[%emt 0:00:13]} h4 {[%emt 0:00:10]} 39. Kf2 {
[%emt 0:00:14]} Kg4 {[%emt 0:00:17]} 40. Kg2 {[%emt 0:00:11]} h3+ {[%emt 0:00:
16]} 41. Kh1 {[%emt 0:00:11]} Kg3 {[%emt 0:00:18]} 42. b4 {[%emt 0:00:17]} Nd3
{[%emt 0:00:13]} 43. a3 {[%emt 0:00:12]} h2 {[%emt 0:00:12]} 44. d6 {[%emt 0:
00:18]} Nf2# {[%emt 0:00:11] VastMeaslyPlum won by checkmate} 0-1

[Event "Fast Chess"]
[Site "ChessKid.com"]
[Date "2020.03.22"]
[Round "3"]
[White "Georgiev, Maximilian"]
[Black "Rigo, Clemans"]
[Result "1-0"]
[ECO "B01"]
[WhiteElo "1163"]
[BlackElo "726"]
[PlyCount "69"]
[EventDate "2020.??.??"]
[TimeControl "300+10"]
[WhiteClock "0:00:03"]
[BlackClock "0:01:54"]

1. e4 {[%emt 0:00:09]} d5 {[%emt 0:00:10]} 2. exd5 {[%emt 0:00:12]} Qxd5 {
[%emt 0:00:16]} 3. Nc3 {[%emt 0:00:11]} Qe5+ {[%emt 0:00:16]} 4. Be2 {[%emt 0:
00:13]} Nc6 {[%emt 0:00:12]} 5. Nf3 {[%emt 0:00:13]} Qe6 {[%emt 0:00:21]} 6.
O-O {[%emt 0:00:15]} Nf6 {[%emt 0:00:16]} 7. Ng5 {[%emt 0:00:13]} Qf5 {[%emt 0:
00:17]} 8. d3 {[%emt 0:00:15]} Nd4 {[%emt 0:00:18]} 9. Bg4 {[%emt 0:00:14]}
Nxg4 {[%emt 0:00:20]} 10. Nh3 {[%emt 0:00:25]} Qg6 {[%emt 0:00:36]} 11. Be3 {
[%emt 0:00:23]} Nxe3 {[%emt 0:00:14]} 12. fxe3 {[%emt 0:00:16]} Bxh3 {[%emt 0:
00:14]} 13. Rf2 {[%emt 0:00:15]} Bg4 {[%emt 0:00:43]} 14. Qe1 {[%emt 0:00:17]}
Nf3+ {[%emt 0:00:32]} 15. Rxf3 {[%emt 0:00:19]} Bxf3 {[%emt 0:00:12]} 16. Qf2 {
[%emt 0:00:18]} Bd5 {[%emt 0:00:24]} 17. Nxd5 {[%emt 0:00:13]} O-O-O {[%emt 0:
00:24]} 18. Re1 {[%emt 0:00:22]} Rxd5 {[%emt 0:00:13]} 19. e4 {[%emt 0:00:26]}
Ra5 {[%emt 0:00:19]} 20. a3 {[%emt 0:00:15]} h5 {[%emt 0:00:12]} 21. Qd4 {
[%emt 0:00:26]} h4 {[%emt 0:00:09]} 22. h3 {[%emt 0:00:13]} e5 {[%emt 0:00:18]}
23. Qc4 {[%emt 0:00:14]} Qg3 {[%emt 0:00:20]} 24. Rf1 {[%emt 0:00:12]} Bc5+ {
[%emt 0:00:16]} 25. Kh1 {[%emt 0:00:13]} g5 {[%emt 0:00:30]} 26. b4 {[%emt 0:
00:13]} Rxa3 {[%emt 0:00:26]} 27. bxc5 {[%emt 0:00:18]} g4 {[%emt 0:00:10]} 28.
Qxf7 {[%emt 0:00:13]} gxh3 {[%emt 0:00:16]} 29. Qe6+ {[%emt 0:00:15]} Kd8 {
[%emt 0:00:13]} 30. gxh3 {[%emt 0:00:16]} Ra1 {[%emt 0:00:35]} 31. Qf6+ {
[%emt 0:00:13]} Kd7 {[%emt 0:00:15]} 32. Rxa1 {[%emt 0:00:13]} Qxh3+ {[%emt 0:
00:17]} 33. Kg1 {[%emt 0:00:12]} Qg3+ {[%emt 0:00:12]} 34. Kh1 {[%emt 0:00:12]}
h3 {[%emt 0:00:12]} 35. Qf5+ {[%emt 0:00:13] TallSnazzyBall won on time} 1-0

[Event "Fast Chess"]
[Site "ChessKid.com"]
[Date "2020.03.23"]
[Round "1"]
[White "Halimi, Dorian"]
[Black "Horvath, Alexander"]
[Result "0-1"]
[ECO "C20"]
[WhiteElo "892"]
[BlackElo "1362"]
[PlyCount "76"]
[EventDate "2020.??.??"]
[TimeControl "900"]
[WhiteClock "0:11:33"]
[BlackClock "0:11:43"]

1. e4 {[%emt 0:00:03]} e5 {[%emt 0:00:03]} 2. Qh5 {[%emt 0:00:03]} Nc6 {
[%emt 0:00:03]} 3. Qf3 {[%emt 0:00:06]} Nd4 {[%emt 0:00:03]} 4. Qd3 {[%emt 0:
00:04]} Bc5 {[%emt 0:00:15]} 5. c3 {[%emt 0:00:05]} Qh4 {[%emt 0:00:11]} 6.
cxd4 {[%emt 0:00:04]} Bxd4 {[%emt 0:00:01]} 7. g3 {[%emt 0:00:07]} Qe7 {
[%emt 0:00:06]} 8. h4 {[%emt 0:00:05]} Qf6 {[%emt 0:00:01]} 9. Bh3 {[%emt 0:00:
04]} Qxf2+ {[%emt 0:00:04]} 10. Kd1 {[%emt 0:00:06]} d6 {[%emt 0:00:11]} 11.
Nc3 {[%emt 0:00:10]} Bxh3 {[%emt 0:00:10]} 12. Rxh3 {[%emt 0:00:04]} Qxg1+ {
[%emt 0:00:04]} 13. Kc2 {[%emt 0:00:04]} Qg2 {[%emt 0:00:08]} 14. Nb5 {[%emt 0:
00:06]} Kd8 {[%emt 0:00:11]} 15. g4 {[%emt 0:00:05]} Nf6 {[%emt 0:00:06]} 16.
Kb1 {[%emt 0:00:03]} Nxe4 {[%emt 0:00:07]} 17. Qc4 {[%emt 0:00:17]} Rc8 {
[%emt 0:00:18]} 18. Nxa7 {[%emt 0:00:03]} Bxa7 {[%emt 0:00:03]} 19. Rb3 {
[%emt 0:00:06]} Qxg4 {[%emt 0:00:13]} 20. Rxb7 {[%emt 0:00:05]} Nxd2+ {[%emt 0:
00:06]} 21. Bxd2 {[%emt 0:00:05]} Qxc4 {[%emt 0:00:04]} 22. Rxa7 {[%emt 0:00:
04]} Qd3+ {[%emt 0:00:08]} 23. Kc1 {[%emt 0:00:03]} Qd4 {[%emt 0:00:03]} 24.
Bc3 {[%emt 0:00:07]} Qg1+ {[%emt 0:00:04]} 25. Kc2 {[%emt 0:00:08]} Qxa7 {
[%emt 0:00:02]} 26. Rf1 {[%emt 0:00:07]} Rf8 {[%emt 0:00:04]} 27. b4 {[%emt 0:
00:07]} Qxa2+ {[%emt 0:00:03]} 28. Bb2 {[%emt 0:00:02]} Qc4+ {[%emt 0:00:03]}
29. Kb1 {[%emt 0:00:15]} Qxf1+ {[%emt 0:00:02]} 30. Ka2 {[%emt 0:00:05]} Ra8+ {
[%emt 0:00:03]} 31. Kb3 {[%emt 0:00:02]} Qd3+ {[%emt 0:00:03]} 32. Bc3 {
[%emt 0:00:04]} Ra1 {[%emt 0:00:05]} 33. b5 {[%emt 0:00:05]} Rc1 {[%emt 0:00:
03]} 34. Ka4 {[%emt 0:00:05]} Qc2+ {[%emt 0:00:05]} 35. Ka5 {[%emt 0:00:03]}
Qxc3+ {[%emt 0:00:03]} 36. Ka6 {[%emt 0:00:01]} Qb4 {[%emt 0:00:07]} 37. b6 {
[%emt 0:00:02]} Ra1+ {[%emt 0:00:03]} 38. Kb7 {[%emt 0:00:05]} Qxb6# {[%emt 0:
00:02] KeenOrangeTeeth won by checkmate} 0-1

[Event "Fast Chess"]
[Site "ChessKid.com"]
[Date "2020.03.23"]
[Round "1"]
[White "Sasse, Gabriel"]
[Black "Hessenberger, Oliver"]
[Result "1-0"]
[ECO "C55"]
[WhiteElo "1154"]
[BlackElo "743"]
[PlyCount "39"]
[EventDate "2020.??.??"]
[TimeControl "900"]
[WhiteClock "0:12:45"]
[BlackClock "0:13:39"]

1. e4 {[%emt 0:00:00]} e5 {[%emt 0:00:05]} 2. Nf3 {[%emt 0:00:03]} Nc6 {
[%emt 0:00:01]} 3. Bc4 {[%emt 0:00:02]} Nf6 {[%emt 0:00:01]} 4. Nc3 {[%emt 0:
00:02]} Bb4 {[%emt 0:00:03]} 5. h3 {[%emt 0:00:03]} Bxc3 {[%emt 0:00:02]} 6.
dxc3 {[%emt 0:00:01]} d5 {[%emt 0:00:12]} 7. exd5 {[%emt 0:00:04]} Nxd5 {
[%emt 0:00:04]} 8. Bxd5 {[%emt 0:00:01]} O-O {[%emt 0:00:06]} 9. O-O {[%emt 0:
00:12]} Qf6 {[%emt 0:00:22]} 10. Bxc6 {[%emt 0:00:04]} Qxc6 {[%emt 0:00:05]}
11. Nxe5 {[%emt 0:00:04]} Qc5 {[%emt 0:00:10]} 12. Qe1 {[%emt 0:00:08]} b6 {
[%emt 0:00:07]} 13. a4 {[%emt 0:00:07]} Ba6 {[%emt 0:00:04]} 14. b3 {[%emt 0:
00:06]} Bxf1 {[%emt 0:00:06]} 15. Ba3 {[%emt 0:00:02]} Qd5 {[%emt 0:00:10]} 16.
Bxf8 {[%emt 0:00:05]} Kxf8 {[%emt 0:00:09]} 17. Kxf1 {[%emt 0:00:02]} Re8 {
[%emt 0:00:04]} 18. Rd1 {[%emt 0:00:06]} Qa5 {[%emt 0:00:18]} 19. Nd7+ {
[%emt 0:00:05]} Kg8 {[%emt 0:00:06]} 20. Qxe8# {[%emt 0:00:03] LimeFarActor
won by checkmate} 1-0

[Event "Fast Chess"]
[Site "ChessKid.com"]
[Date "2020.03.23"]
[Round "1"]
[White "Gross, Lukas"]
[Black "Georgiev, Maximilian"]
[Result "0-1"]
[ECO "A00"]
[WhiteElo "702"]
[BlackElo "1105"]
[PlyCount "90"]
[EventDate "2020.??.??"]
[TimeControl "900"]
[WhiteClock "0:09:09"]
[BlackClock "0:07:30"]

1. g3 {[%emt 0:00:04]} e5 {[%emt 0:00:03]} 2. Bg2 {[%emt 0:00:07]} Nf6 {
[%emt 0:00:05]} 3. Nh3 {[%emt 0:00:03]} d6 {[%emt 0:00:04]} 4. O-O {[%emt 0:00:
02]} Be7 {[%emt 0:00:04]} 5. Nc3 {[%emt 0:00:10]} c6 {[%emt 0:00:06]} 6. e4 {
[%emt 0:00:03]} O-O {[%emt 0:00:09]} 7. d3 {[%emt 0:00:14]} Na6 {[%emt 0:00:07]
} 8. Bg5 {[%emt 0:00:14]} h6 {[%emt 0:00:04]} 9. Bc1 {[%emt 0:00:09]} Nc5 {
[%emt 0:00:04]} 10. b4 {[%emt 0:00:06]} Ncd7 {[%emt 0:00:10]} 11. f4 {[%emt 0:
00:08]} exf4 {[%emt 0:00:04]} 12. gxf4 {[%emt 0:00:03]} Nb6 {[%emt 0:00:06]}
13. Rf2 {[%emt 0:00:04]} c5 {[%emt 0:00:13]} 14. bxc5 {[%emt 0:00:08]} dxc5 {
[%emt 0:00:02]} 15. Rb1 {[%emt 0:00:19]} Ng4 {[%emt 0:00:05]} 16. Rf1 {[%emt 0:
00:04]} Qd4+ {[%emt 0:00:04]} 17. Kh1 {[%emt 0:00:08]} Qxc3 {[%emt 0:00:05]}
18. Bd2 {[%emt 0:00:06]} Qd4 {[%emt 0:00:07]} 19. c3 {[%emt 0:00:19]} Qxd3 {
[%emt 0:00:05]} 20. Rf3 {[%emt 0:00:15]} Qxe4 {[%emt 0:00:40]} 21. Qe1 {
[%emt 0:00:19]} Qxe1+ {[%emt 0:00:04]} 22. Rxe1 {[%emt 0:00:03]} Bh4 {[%emt 0:
00:06]} 23. Re2 {[%emt 0:00:17]} Nf6 {[%emt 0:00:13]} 24. c4 {[%emt 0:00:14]}
Bg4 {[%emt 0:00:05]} 25. Rfe3 {[%emt 0:00:12]} Bxe2 {[%emt 0:00:02]} 26. Rxe2 {
[%emt 0:00:03]} Rfe8 {[%emt 0:00:02]} 27. Be3 {[%emt 0:00:25]} Ng4 {[%emt 0:00:
07]} 28. Bf3 {[%emt 0:00:07]} Nxe3 {[%emt 0:00:04]} 29. Rb2 {[%emt 0:00:20]}
Nexc4 {[%emt 0:00:07]} 30. Rb1 {[%emt 0:00:02]} Nd2 {[%emt 0:00:02]} 31. Rb2 {
[%emt 0:00:06]} Nxf3 {[%emt 0:00:05]} 32. Rb3 {[%emt 0:00:28]} Nd2 {[%emt 0:00:
14]} 33. Rb2 {[%emt 0:00:03]} Ne4 {[%emt 0:00:05]} 34. Re2 {[%emt 0:00:08]}
Ng3+ {[%emt 0:00:21]} 35. Kg2 {[%emt 0:00:08]} Nxe2 {[%emt 0:00:02]} 36. Kf3 {
[%emt 0:00:11]} Nc3 {[%emt 0:00:08]} 37. a3 {[%emt 0:00:05]} Rad8 {[%emt 0:00:
06]} 38. f5 {[%emt 0:00:02]} Re4 {[%emt 0:00:09]} 39. Kg2 {[%emt 0:00:25]} Rd3
{[%emt 0:00:13]} 40. Ng1 {[%emt 0:00:23]} Ree3 {[%emt 0:00:30]} 41. a4 {
[%emt 0:00:11]} Rd2+ {[%emt 0:00:04]} 42. Kh1 {[%emt 0:00:10]} Ne4 {[%emt 0:00:
23]} 43. a5 {[%emt 0:00:09]} Nf2+ {[%emt 0:00:04]} 44. Kg2 {[%emt 0:00:04]}
Ng4+ {[%emt 0:00:07]} 45. Kh1 {[%emt 0:00:08]} Rxh2# {[%emt 0:00:02]
TallSnazzyBall won by checkmate} 0-1

[Event "Fast Chess"]
[Site "ChessKid.com"]
[Date "2020.03.23"]
[Round "2"]
[White "Horvath, Alexander"]
[Black "Georgiev, Maximilian"]
[Result "1-0"]
[ECO "C50"]
[WhiteElo "1372"]
[BlackElo "1084"]
[PlyCount "71"]
[EventDate "2020.??.??"]
[TimeControl "900"]
[WhiteClock "0:09:08"]
[BlackClock "0:11:21"]

1. e4 {[%emt 0:00:00]} e5 {[%emt 0:00:03]} 2. Nf3 {[%emt 0:00:02]} Nc6 {
[%emt 0:00:02]} 3. Nc3 {[%emt 0:00:03]} Nf6 {[%emt 0:00:05]} 4. Bc4 {[%emt 0:
00:02]} h6 {[%emt 0:00:04]} 5. d3 {[%emt 0:00:04]} Bc5 {[%emt 0:00:16]} 6. Be3
{[%emt 0:00:07]} Bxe3 {[%emt 0:00:04]} 7. fxe3 {[%emt 0:00:01]} d6 {[%emt 0:00:
05]} 8. Bb5 {[%emt 0:00:12]} Bd7 {[%emt 0:00:08]} 9. Nd5 {[%emt 0:00:02]} a6 {
[%emt 0:00:26]} 10. Bxc6 {[%emt 0:00:07]} Bxc6 {[%emt 0:00:04]} 11. c4 {
[%emt 0:00:02]} Ng4 {[%emt 0:00:15]} 12. b3 {[%emt 0:00:19]} Bxd5 {[%emt 0:00:
03]} 13. exd5 {[%emt 0:00:03]} Nxe3 {[%emt 0:00:02]} 14. Qe2 {[%emt 0:00:05]}
Nf5 {[%emt 0:00:05]} 15. Qe4 {[%emt 0:00:09]} Qf6 {[%emt 0:00:08]} 16. O-O {
[%emt 0:00:07]} O-O {[%emt 0:00:03]} 17. Nd2 {[%emt 0:00:05]} g6 {[%emt 0:00:
05]} 18. g4 {[%emt 0:00:04]} Qg5 {[%emt 0:00:07]} 19. Nf3 {[%emt 0:00:05]} Qe3+
{[%emt 0:01:00]} 20. Kh1 {[%emt 0:00:30]} Qxe4 {[%emt 0:00:03]} 21. dxe4 {
[%emt 0:00:02]} Ne3 {[%emt 0:00:04]} 22. Rg1 {[%emt 0:00:12]} Nc2 {[%emt 0:00:
38]} 23. Rac1 {[%emt 0:00:14]} Nd4 {[%emt 0:00:05]} 24. Nxd4 {[%emt 0:00:05]}
exd4 {[%emt 0:00:02]} 25. Rcd1 {[%emt 0:00:05]} c5 {[%emt 0:00:03]} 26. dxc6 {
[%emt 0:00:04]} bxc6 {[%emt 0:00:02]} 27. Rxd4 {[%emt 0:00:02]} Rad8 {[%emt 0:
00:15]} 28. Rgd1 {[%emt 0:00:07]} Rfe8 {[%emt 0:00:13]} 29. c5 {[%emt 0:00:04]}
d5 {[%emt 0:00:16]} 30. exd5 {[%emt 0:00:06]} cxd5 {[%emt 0:00:03]} 31. Rxd5 {
[%emt 0:00:04]} Rc8 {[%emt 0:00:18]} 32. Rc1 {[%emt 0:00:11]} Re2 {[%emt 0:00:
05]} 33. a4 {[%emt 0:00:05]} Rb2 {[%emt 0:00:32]} 34. c6 {[%emt 0:00:04]} Rxb3
{[%emt 0:00:04]} 35. c7 {[%emt 0:00:02]} Kg7 {[%emt 0:00:06]} 36. Rd8 {[%emt 0:
00:03] KeenOrangeTeeth won by resignation} 1-0

[Event "Fast Chess"]
[Site "ChessKid.com"]
[Date "2020.03.23"]
[Round "2"]
[White "Halimi, Dorian"]
[Black "Sasse, Gabriel"]
[Result "0-1"]
[ECO "C48"]
[WhiteElo "848"]
[BlackElo "1160"]
[PlyCount "124"]
[EventDate "2020.??.??"]
[TimeControl "900"]
[WhiteClock "0:10:18"]
[BlackClock "0:10:09"]

1. e4 {[%emt 0:00:05]} e5 {[%emt 0:00:02]} 2. Nf3 {[%emt 0:00:05]} Nc6 {
[%emt 0:00:02]} 3. Nc3 {[%emt 0:00:02]} Nf6 {[%emt 0:00:03]} 4. Bb5 {[%emt 0:
00:02]} Bc5 {[%emt 0:00:01]} 5. Bxc6 {[%emt 0:00:03]} dxc6 {[%emt 0:00:02]} 6.
d3 {[%emt 0:00:10]} Ng4 {[%emt 0:00:06]} 7. Bg5 {[%emt 0:00:07]} Be7 {[%emt 0:
00:05]} 8. Bxe7 {[%emt 0:00:04]} Qxe7 {[%emt 0:00:01]} 9. O-O {[%emt 0:00:04]}
O-O {[%emt 0:00:06]} 10. h3 {[%emt 0:00:07]} Nf6 {[%emt 0:00:03]} 11. Nh4 {
[%emt 0:00:08]} Ne8 {[%emt 0:00:08]} 12. g3 {[%emt 0:00:04]} Qg5 {[%emt 0:00:
14]} 13. Qf3 {[%emt 0:00:10]} Bxh3 {[%emt 0:00:06]} 14. Rfe1 {[%emt 0:00:05]}
Bg4 {[%emt 0:00:08]} 15. Qe3 {[%emt 0:00:11]} Qxe3 {[%emt 0:00:02]} 16. Rxe3 {
[%emt 0:00:03]} Nd6 {[%emt 0:00:12]} 17. Rae1 {[%emt 0:00:09]} Nb5 {[%emt 0:00:
03]} 18. Nxb5 {[%emt 0:00:04]} cxb5 {[%emt 0:00:01]} 19. b3 {[%emt 0:00:03]}
Rad8 {[%emt 0:00:28]} 20. f3 {[%emt 0:00:03]} Bc8 {[%emt 0:00:04]} 21. Rd1 {
[%emt 0:00:06]} Rd6 {[%emt 0:00:02]} 22. c4 {[%emt 0:00:03]} Rh6 {[%emt 0:00:
06]} 23. cxb5 {[%emt 0:00:03]} Bd7 {[%emt 0:00:03]} 24. a4 {[%emt 0:00:03]} a6
{[%emt 0:00:01]} 25. bxa6 {[%emt 0:00:03]} bxa6 {[%emt 0:00:01]} 26. d4 {
[%emt 0:00:07]} exd4 {[%emt 0:00:02]} 27. Rxd4 {[%emt 0:00:03]} Bh3 {[%emt 0:
00:04]} 28. Red3 {[%emt 0:00:08]} Rd6 {[%emt 0:00:05]} 29. Nf5 {[%emt 0:00:08]}
Rxd4 {[%emt 0:00:03]} 30. Rxd4 {[%emt 0:00:02]} g6 {[%emt 0:00:02]} 31. Ne7+ {
[%emt 0:00:06]} Kg7 {[%emt 0:00:19]} 32. g4 {[%emt 0:00:07]} Rb8 {[%emt 0:00:
09]} 33. f4 {[%emt 0:00:06]} Bxg4 {[%emt 0:00:06]} 34. Rd7 {[%emt 0:00:07]}
Rxb3 {[%emt 0:00:03]} 35. Rd4 {[%emt 0:00:00]} Rb1+ {[%emt 0:00:10]} 36. Kf2 {
[%emt 0:00:03]} Rb2+ {[%emt 0:00:04]} 37. Kg3 {[%emt 0:00:14]} Be2 {[%emt 0:00:
11]} 38. f5 {[%emt 0:00:04]} gxf5 {[%emt 0:00:02]} 39. exf5 {[%emt 0:00:03]}
Kf6 {[%emt 0:00:02]} 40. Nd5+ {[%emt 0:00:05]} Ke5 {[%emt 0:00:02]} 41. Rf4 {
[%emt 0:00:13]} Kxd5 {[%emt 0:00:06]} 42. Kh4 {[%emt 0:00:04]} Ke5 {[%emt 0:00:
06]} 43. Kg5 {[%emt 0:00:03]} f6+ {[%emt 0:00:03]} 44. Kh4 {[%emt 0:00:12]}
Kxf4 {[%emt 0:00:02]} 45. a5 {[%emt 0:00:05]} Kxf5 {[%emt 0:00:01]} 46. Kg3 {
[%emt 0:00:02]} c5 {[%emt 0:00:02]} 47. Kh4 {[%emt 0:00:03]} Rd2 {[%emt 0:00:
01]} 48. Kg3 {[%emt 0:00:01]} c4 {[%emt 0:00:01]} 49. Kf2 {[%emt 0:00:03]} c3 {
[%emt 0:00:02]} 50. Ke3 {[%emt 0:00:01]} Rd8 {[%emt 0:00:03]} 51. Kxe2 {
[%emt 0:00:03]} c2 {[%emt 0:00:00]} 52. Ke3 {[%emt 0:00:03]} c1=Q+ {[%emt 0:00:
02]} 53. Kf3 {[%emt 0:00:02]} Qe1 {[%emt 0:00:05]} 54. Kg2 {[%emt 0:00:05]}
Rd2+ {[%emt 0:00:03]} 55. Kh3 {[%emt 0:00:01]} Qe4 {[%emt 0:00:07]} 56. Kg3 {
[%emt 0:00:04]} Rd3+ {[%emt 0:00:01]} 57. Kf2 {[%emt 0:00:04]} Qe3+ {[%emt 0:
00:06]} 58. Kf1 {[%emt 0:00:02]} Rd1+ {[%emt 0:00:05]} 59. Kg2 {[%emt 0:00:02]}
Rd2+ {[%emt 0:00:03]} 60. Kf1 {[%emt 0:00:04]} Qh3+ {[%emt 0:00:05]} 61. Ke1 {
[%emt 0:00:02]} Rg2 {[%emt 0:00:05]} 62. Kd1 {[%emt 0:00:02]} Qh1# {[%emt 0:00:
02] LimeFarActor won by checkmate} 0-1

[Event "Fast Chess"]
[Site "ChessKid.com"]
[Date "2020.03.23"]
[Round "2"]
[White "Hessenberger, Oliver"]
[Black "Gross, Lukas"]
[Result "0-1"]
[ECO "B06"]
[WhiteElo "590"]
[BlackElo "723"]
[PlyCount "54"]
[EventDate "2020.??.??"]
[TimeControl "900"]
[WhiteClock "0:11:26"]
[BlackClock "0:10:48"]

1. e4 {[%emt 0:00:00]} g6 {[%emt 0:00:05]} 2. Nf3 {[%emt 0:00:01]} Bg7 {
[%emt 0:00:03]} 3. Bc4 {[%emt 0:00:09]} Nh6 {[%emt 0:00:02]} 4. Ng5 {[%emt 0:
00:02]} f6 {[%emt 0:00:06]} 5. Nf3 {[%emt 0:00:04]} e6 {[%emt 0:00:06]} 6. b3 {
[%emt 0:00:12]} O-O {[%emt 0:00:02]} 7. Ba3 {[%emt 0:00:03]} Nc6 {[%emt 0:00:
21]} 8. Bxf8 {[%emt 0:00:04]} Bxf8 {[%emt 0:00:04]} 9. O-O {[%emt 0:00:07]} f5
{[%emt 0:00:05]} 10. exf5 {[%emt 0:00:03]} gxf5 {[%emt 0:00:04]} 11. Ng5 {
[%emt 0:00:13]} Qf6 {[%emt 0:00:08]} 12. Na3 {[%emt 0:00:10]} Qxg5 {[%emt 0:00:
08]} 13. Qf3 {[%emt 0:00:23]} d5 {[%emt 0:00:09]} 14. Bb5 {[%emt 0:00:13]} a6 {
[%emt 0:00:12]} 15. Bxc6 {[%emt 0:00:04]} bxc6 {[%emt 0:00:03]} 16. Qc3 {
[%emt 0:00:16]} Bxa3 {[%emt 0:00:07]} 17. Rae1 {[%emt 0:00:16]} Bb7 {[%emt 0:
00:10]} 18. Rxe6 {[%emt 0:00:16]} Rf8 {[%emt 0:00:07]} 19. Rfe1 {[%emt 0:00:13]
} Bc8 {[%emt 0:00:07]} 20. Re8 {[%emt 0:00:03]} Rxe8 {[%emt 0:00:29]} 21. Rxe8+
{[%emt 0:00:05]} Kf7 {[%emt 0:00:04]} 22. Qe5 {[%emt 0:00:23]} Bd7 {[%emt 0:00:
11]} 23. g3 {[%emt 0:00:03]} Bxe8 {[%emt 0:00:03]} 24. Qxc7+ {[%emt 0:00:05]}
Be7 {[%emt 0:00:12]} 25. Qc8 {[%emt 0:00:13]} Qxd2 {[%emt 0:00:11]} 26. Qxa6 {
[%emt 0:00:06]} Qxc2 {[%emt 0:00:08]} 27. Qa3 {[%emt 0:00:25]} Bxa3 {[%emt 0:
00:08] RosyPopularArm won by resignation} 0-1